bitfinex/quotes_ETHUSD_20241215
["timestamp","ask_amount","ask_price","bid_price","bid_amount"]
[1734296335230,0.02494514,3891.3,3890.5,1.0110341]
[1734296336728,2.59478514,3891.3,3890.5,1.0110341]
[1734296336951,2.59478514,3891.3,3890.5,1.61110387]
[1734296337157,2.59478514,3891.3,3890.6,0.8904516]
[1734296339444,0.02494514,3891.3,3890.6,0.8904516]
[1734296341631,0.02494514,3891.3,3890.5,1.61110387]
[1734296342353,0.02494514,3891.3,3890.8,1.0110341]
[1734296346363,0.02494514,3891.3,3890.9,0.89048454]
[1734296348210,0.02494514,3891.3,3891.0,0.89055147]
[1734296348350,0.02494514,3891.3,3890.8,1.35821994]
[1734296348667,0.02494514,3891.3,3890.9,2.22646353]
[1734296348826,0.02494514,3891.3,3890.8,1.35821994]
[1734296348827,0.02494514,3891.3,3891.0,0.89058541]
[1734296349168,0.02494514,3891.3,3890.8,1.35821994]
[1734296349367,0.02494514,3891.3,3890.9,2.80544098]
[1734296349579,0.02494514,3891.3,3891.0,0.89060901]
[1734296351577,0.02494514,3891.3,3891.1,0.89086773]
[1734296351777,0.02494514,3891.3,3890.9,0.57891845]
[1734296351978,0.02494514,3891.3,3891.0,2.22716881]
[1734296352280,0.02494514,3891.3,3891.1,1.41485369]
[1734296352444,0.02494514,3891.3,3891.1,0.52398617]
[1734296352647,0.5379,3891.7,3891.1,0.52398617]
[1734296352877,0.02326824,3891.2,3890.9,1.65447299]
[1734296353083,0.5379,3891.7,3891.0,2.22754691]
[1734296353280,0.5379,3891.7,3891.1,0.89101876]
[1734296353485,0.02340373,3891.6,3890.9,1.65447299]
[1734296353645,0.02340373,3891.6,3891.0,2.22760488]
[1734296353847,0.02340373,3891.6,3891.1,0.89104195]
[1734296354047,0.02340373,3891.6,3890.9,1.65447299]
[1734296354261,0.02340373,3891.6,3891.0,2.22761301]
[1734296354588,0.02340373,3891.6,3891.1,0.8910452]
[1734296354773,0.02340373,3891.6,3890.9,0.57891845]
[1734296354952,2.33126794,3891.6,3891.0,0.89105715]
[1734296355147,1.09175928,3891.6,3890.9,0.57891845]
[1734296355354,1.23948016,3891.5,3890.9,0.57891845]
[1734296355590,0.02333599,3891.4,3890.9,0.57891845]
[1734296357790,0.03077822,3891.4,3890.9,0.57891845]
[1734296359393,3.10774,3891.3,3890.6,1.07555454]
[1734296359687,0.03368516,3891.2,3890.7,0.89121003]
[1734296359897,0.03368516,3891.2,3890.5,1.0110341]
[1734296360186,0.03368516,3891.2,3890.6,2.227976]
[1734296360366,0.03368516,3891.2,3890.5,1.0110341]
[1734296360696,0.03368516,3891.2,3890.6,0.89118616]
[1734296360891,0.03368516,3891.2,3890.5,4.0110341]
[1734296361088,0.03368516,3891.2,3890.6,2.22786115]
[1734296361255,0.03368516,3891.2,3890.5,4.77242705]
[1734296361456,0.03368516,3891.2,3890.6,2.2278755]
[1734296361656,0.03368516,3891.2,3890.7,0.8911502]
[1734296361889,0.03368516,3891.2,3890.5,5.84798159]
[1734296362097,0.03368516,3891.2,3890.6,2.22779261]
[1734296362296,0.03368516,3891.2,3890.5,5.84798159]
[1734296362597,0.03368516,3891.2,3890.6,2.22779628]
[1734296362895,0.03368516,3891.2,3890.7,0.89111851]
[1734296363081,0.03368516,3891.2,3890.5,5.84798159]
[1734296363279,0.03368516,3891.2,3890.6,2.22774645]
[1734296363494,0.03368516,3891.2,3890.7,0.89109858]
[1734296363696,0.03368516,3891.2,3890.5,4.77242705]
[1734296363992,0.03368516,3891.2,3890.6,3.24377411]
[1734296364192,0.03368516,3891.2,3890.7,2.22770286]
[1734296364394,0.03368516,3891.2,3890.8,0.89108114]
[1734296364596,0.5379,3891.3,3890.6,2.09162579]
[1734296364766,0.03737149,3891.1,3890.7,3.07535612]
[1734296364961,0.5379,3891.3,3890.8,0.89104706]
[1734296365159,0.03742795,3891.2,3890.5,5.84798159]
[1734296365466,0.03742795,3891.2,3890.6,2.22767128]
[1734296365666,0.03742795,3891.2,3890.7,0.89106851]
[1734296365880,0.03742795,3891.2,3890.6,1.23883838]
[1734296366089,0.03742795,3891.2,3890.7,0.89106794]
[1734296366399,0.03742795,3891.2,3890.6,1.23883838]
[1734296366598,0.03742795,3891.2,3890.7,2.22762106]
[1734296366760,0.5379,3890.7,3890.1,1.07555454]
[1734296366959,0.5379,3890.5,3889.8,1.07555454]
[1734296367162,0.5379,3890.5,3889.9,0.89122659]
[1734296367394,3.10827,3890.5,3889.6,1.07555454]
[1734296367567,3.10827,3890.5,3889.7,2.22819338]
[1734296367767,3.10827,3890.5,3889.8,0.89127735]
[1734296367990,3.10827,3890.5,3889.5,1.07555454]
[1734296368207,3.10835,3890.4,3889.6,0.89091718]
[1734296368373,3.10835,3890.4,3889.7,2.22729295]
[1734296368578,3.10835,3890.4,3889.5,0.97237016]
[1734296368888,3.10835,3890.4,3889.6,2.2265889]
[1734296369462,0.5379,3890.4,3889.6,2.2265889]
[1734296369714,0.5379,3890.4,3889.7,1.59153372]
[1734296370363,0.5379,3890.4,3890.0,1.0110341]
[1734296380091,0.5379,3890.8,3890.0,1.8204341]
[1734296380329,0.5379,3890.8,3890.3,1.0110341]
[1734296383522,0.5379,3890.6,3889.5,2.0479247]
[1734296383829,0.5379,3890.6,3889.7,3.0]
[1734296384032,0.5379,3890.6,3889.6,1.0110341]
[1734296384336,0.5379,3890.5,3889.6,1.0110341]
[1734296385191,0.5379,3890.5,3889.6,1.50102594]
[1734296391113,0.5379,3890.4,3889.1,5.08658864]
[1734296391371,0.5379,3890.1,3889.2,5.2232129]
[1734296391554,0.5379,3890.1,3889.3,3.88928516]
[1734296391866,0.5379,3890.1,3889.1,5.08658864]
[1734296392013,0.5379,3890.1,3889.2,6.23121162]
[1734296392213,0.5379,3890.1,3889.3,0.88925543]
[1734296393648,0.5379,3890.1,3889.2,4.53376119]
[1734296393853,0.5379,3890.1,3889.3,0.88928483]
[1734296394017,0.5379,3890.1,3889.2,4.53376119]
[1734296394217,0.5379,3890.1,3889.3,4.88938246]
[1734296394414,0.5379,3890.1,3889.3,1.00010298]
[1734296396560,0.5379,3890.1,3889.4,1.0110341]
[1734296399956,0.5379,3890.1,3889.3,1.00010298]
[1734296400138,0.5379,3890.1,3889.3,2.01113708]
[1734296400331,0.5379,3890.1,3889.3,5.01113708]
[1734296400533,0.5379,3890.1,3889.4,3.81081052]
[1734296400798,0.5379,3890.1,3889.4,0.81081052]
[1734296401626,0.5379,3890.1,3889.4,3.81081052]
[1734296401851,0.5379,3890.1,3889.4,0.81081052]
[1734296402246,3.10853,3890.1,3889.4,0.81081052]
[1734296402563,0.5379,3890.0,3889.2,0.52568814]
[1734296402754,0.5379,3889.8,3889.2,0.52568814]
[1734296405739,0.5379,3889.8,3889.0,1.0110341]
[1734296407448,0.5379,3889.8,3889.1,0.50362023]
[1734296408479,0.5379,3889.8,3889.1,0.95508566]
[1734296410377,0.5379,3889.8,3889.1,0.50362023]
[1734296410711,0.5379,3889.9,3888.6,1.07555454]
[1734296410837,1.06835555,3890.0,3888.5,0.8252]
[1734296410838,2.57109,3889.4,3888.8,0.51601459]
[1734296411037,0.5379,3889.3,3888.8,0.51601459]
[1734296412883,0.5379,3889.8,3889.0,1.0110341]
[1734296413274,0.5379,3889.8,3889.0,1.35381442]
[1734296413475,0.5379,3889.8,3888.8,0.51601459]
[1734296413787,0.5379,3889.6,3888.8,1.52704869]
[1734296414350,0.5379,3889.6,3888.9,0.89022366]
[1734296414756,0.5379,3889.6,3888.8,1.52704869]
[1734296415252,0.5379,3889.5,3888.8,0.51601459]
[1734296415450,0.5379,3889.4,3888.8,0.51601459]
[1734296419296,2.5711,3889.4,3888.8,0.51601459]
[1734296419494,0.5379,3889.4,3888.8,0.51601459]
[1734296419789,3.10926,3889.0,3888.1,5.08658864]
[1734296420091,3.10926,3889.0,3888.2,4.78101282]
[1734296420269,3.10926,3889.0,3888.2,2.55613921]
[1734296421253,0.5379,3889.0,3888.2,2.55613921]
[1734296421482,2.57143,3888.9,3888.2,2.55613921]
[1734296421692,0.5379,3888.8,3888.1,4.0110341]
[1734296422395,0.5379,3889.6,3888.7,1.0110341]
[1734296422720,0.5379,3889.6,3888.5,0.8024]
[1734296422721,0.5379,3889.6,3889.1,1.0110341]
[1734296423796,0.5379,3889.6,3888.8,1.0110341]
[1734296423959,0.5379,3889.6,3888.9,0.35826341]
[1734296424261,2.57063,3890.1,3889.1,1.8134341]
[1734296424459,0.5379,3890.0,3889.1,1.8134341]
[1734296425361,0.5379,3890.0,3889.7,1.0110341]
[1734296426365,0.5379,3890.0,3889.4,1.0110341]
[1734296426596,0.5379,3890.0,3889.4,1.78328837]
[1734296426902,0.5379,3890.0,3889.4,0.77225427]
[1734296427061,0.5379,3890.0,3889.1,1.0110341]
[1734296428787,0.5379,3890.0,3889.2,0.8024]
[1734296430702,0.5379,3889.9,3888.8,1.8134341]
[1734296431004,0.5379,3889.8,3888.8,2.16699565]
[1734296431376,2.57083,3889.8,3888.9,1.0110341]
[1734296431577,0.5379,3889.7,3888.9,1.0110341]
[1734296432373,0.848773,3889.7,3888.6,4.0110341]
[1734296432574,0.5379,3889.6,3888.6,4.0110341]
[1734296433594,0.5379,3889.6,3888.7,4.79670251]
[1734296433792,0.5379,3889.6,3888.9,1.0110341]
[1734296434801,0.5379,3889.6,3888.9,3.5824441]
[1734296435005,0.5379,3889.6,3889.2,1.0110341]
[1734296435391,0.5379,3890.2,3889.2,1.0110341]
[1734296435901,0.5379,3890.2,3889.3,0.89008524]
[1734296436292,0.5379,3890.2,3889.5,1.0110341]
[1734296438366,0.5379,3890.2,3889.2,4.09162807]
[1734296438565,0.5379,3890.2,3889.3,5.4272655]
[1734296438766,0.5379,3890.2,3889.4,2.57108]
[1734296442950,1.06835555,3890.9,3890.2,0.8243]
[1734296443141,0.5379,3891.0,3890.5,1.0110341]
[1734296443949,0.5379,3891.0,3890.2,1.8353341]
[1734296444753,0.5379,3891.0,3890.2,1.0110341]
[1734296446016,0.5379,3891.0,3890.0,5.57067]
[1734296446217,0.5379,3891.0,3890.0,6.210167]
[1734296446622,2.13186394,3891.6,3889.7,3.39516]
[1734296446623,0.5379,3890.8,3889.7,3.39516]
[1734296449216,3.10807,3890.8,3889.7,0.8243]
[1734296450036,2.57032,3890.6,3889.4,3.35578]
[1734296450337,0.5379,3890.5,3889.5,3.0]
[1734296450502,0.5379,3890.5,3889.5,3.96457283]
[1734296451533,0.5379,3890.5,3889.5,6.53557283]
[1734296452438,0.5379,3890.5,3889.6,2.48767582]
[1734296452625,0.5379,3890.5,3889.9,2.57072]
[1734296452827,0.5379,3890.5,3889.7,3.35559]
[1734296453013,0.5379,3890.5,3889.8,0.42369487]
[1734296457348,0.5379,3890.5,3890.1,0.52481969]
[1734296457570,1.06835555,3891.1,3890.1,0.52481969]
[1734296457714,0.5379,3891.0,3890.1,0.52481969]
[1734296458069,0.16062556,3890.9,3890.1,0.52481969]
[1734296458415,0.5379,3890.8,3890.1,0.52481969]
[1734296459953,3.10814,3890.7,3890.1,0.52481969]
[1734296460115,3.10504687,3890.7,3890.1,0.52481969]
[1734296460423,0.5379,3890.6,3890.1,0.52481969]
[1734296460627,0.5379,3890.4,3890.1,0.52481969]
[1734296460842,2.57056,3890.2,3890.1,0.52481969]
[1734296461058,2.57063,3890.1,3889.0,0.7704]
[1734296461263,0.5379,3890.0,3889.1,0.18459545]
[1734296464165,2.57077,3889.9,3889.1,0.18459545]
[1734296464375,0.5379,3889.9,3888.7,6.34189]
[1734296464713,3.10867,3889.9,3888.7,6.34189]
[1734296465674,3.10867,3889.9,3888.7,0.7704]
[1734296465675,0.5379,3889.9,3888.7,0.7704]
[1734296465885,0.5379,3889.9,3888.8,5.22364727]
[1734296466087,0.5379,3889.9,3889.1,1.01216193]
[1734296468291,0.5379,3889.9,3888.9,0.97344422]
[1734296468526,0.5379,3889.9,3889.0,3.2374166]
[1734296468686,0.5379,3889.9,3889.1,0.89010187]
[1734296469694,0.5379,3889.9,3889.3,1.01216193]
[1734296469897,0.5379,3889.9,3889.4,0.19022638]
[1734296470223,0.5379,3889.9,3889.3,1.01216193]
[1734296472664,1.06835555,3890.5,3889.3,1.01216193]
[1734296472858,1.60253333,3890.7,3889.3,1.01216193]
[1734296472859,0.5379,3890.2,3889.6,1.01216193]
[1734296473063,0.5379,3890.2,3889.7,0.32376395]
[1734296474899,0.7875,3890.2,3889.7,0.32376395]
[1734296475101,0.7875,3890.2,3889.6,1.01216193]
[1734296478374,0.7875,3890.2,3889.4,2.57107]
[1734296478575,0.7875,3890.2,3889.5,2.22606156]
[1734296478872,0.7875,3890.2,3889.6,0.89042462]
[1734296479087,0.7875,3890.2,3889.4,2.57107]
[1734296479430,0.7875,3890.2,3889.5,3.0690343]
[1734296479576,0.7875,3890.2,3889.6,0.89044626]
[1734296480407,0.7875,3890.2,3889.6,2.22641313]
[1734296480614,0.7875,3890.2,3889.5,0.84291865]
[1734296480793,0.7875,3890.2,3889.6,0.89064287]
[1734296481112,0.7875,3890.2,3889.7,0.53801861]
[1734296484224,0.7875,3890.2,3889.5,0.84291865]
[1734296484419,0.7875,3890.2,3889.6,0.89071443]
[1734296489033,0.7875,3890.2,3889.5,0.84291865]
[1734296489222,0.7875,3890.2,3889.6,0.89073]
[1734296490303,0.5379,3890.1,3889.3,1.07555454]
[1734296490508,0.5379,3890.1,3889.4,0.89104024]
[1734296490830,0.5379,3890.1,3889.5,0.89104024]
[1734296491122,0.5379,3890.1,3889.3,1.73657523]
[1734296491324,0.5379,3890.1,3889.4,2.22764818]
[1734296491529,0.5379,3890.1,3889.5,0.89105927]
[1734296491756,0.5379,3890.1,3889.3,1.73657523]
[1734296491948,0.5379,3890.1,3889.4,2.56276246]
[1734296492228,0.5379,3890.1,3889.5,2.22777176]
[1734296492402,0.5379,3890.1,3889.6,0.8911087]
[1734296492604,0.5379,3890.1,3889.4,0.3349907]
[1734296492823,0.5379,3889.6,3889.2,1.07555454]
[1734296493055,0.5379,3889.6,3888.7,4.84194243]
[1734296493056,0.5379,3889.3,3888.9,1.07555454]
[1734296493192,3.10908,3889.3,3888.5,1.07555454]
[1734296493394,0.5379,3889.2,3888.6,0.89122841]
[1734296493616,0.5379,3889.2,3888.5,1.07555454]
[1734296493617,3.10916,3889.2,3888.7,0.89122841]
[1734296493831,3.10916,3889.2,3888.4,1.56276857]
[1734296494017,3.10916,3889.2,3888.5,2.22817086]
[1734296494195,3.10916,3889.2,3888.4,1.56276857]
[1734296494196,3.10916,3889.2,3888.6,0.89126834]
[1734296494527,3.10916,3889.2,3888.4,0.48721403]
[1734296494831,3.10916,3889.2,3888.5,2.22750735]
[1734296495032,3.10916,3889.2,3888.6,0.89100294]
[1734296495232,3.10916,3889.2,3888.3,1.07555454]
[1734296495438,1.06835555,3889.6,3888.4,0.89080479]
[1734296495439,0.5379,3889.1,3888.4,0.89080479]
[1734296496343,0.5379,3889.1,3888.5,0.89080479]
[1734296496502,0.5379,3889.1,3888.5,0.50570954]
[1734296499037,0.5379,3889.1,3888.6,0.15178715]
[1734296503543,0.5379,3889.1,3888.5,0.50570954]
[1734296503841,0.5379,3889.1,3888.2,3.0]
[1734296504043,0.5379,3889.1,3888.4,2.57169]
[1734296504351,0.5379,3889.1,3888.5,0.89000322]
[1734296504641,0.5379,3889.1,3888.4,2.57169]
[1734296504840,0.5379,3889.1,3888.5,1.55469507]
[1734296505041,0.5379,3889.1,3888.5,0.66472445]
[1734296507217,2.08051748,3889.9,3888.6,0.7577]
[1734296507218,0.5379,3889.8,3888.6,0.7577]
[1734296507424,0.5379,3889.8,3889.1,2.57127]
[1734296507622,0.5379,3889.8,3889.3,1.01216193]
[1734296507821,0.5379,3889.8,3889.3,2.57114]
[1734296508716,0.5379,3890.1,3889.3,3.58330193]
[1734296509608,0.5379,3890.1,3889.3,1.01216193]
[1734296509816,0.5379,3890.1,3889.4,2.57106]
[1734296510016,0.5379,3890.1,3889.5,0.46992651]
[1734296510949,0.5379,3890.1,3889.3,1.01216193]
[1734296511814,0.5379,3890.1,3889.2,6.68724319]
[1734296513334,0.5379,3890.1,3889.2,0.35834319]
[1734296513538,0.5379,3890.1,3889.0,3.13142504]
[1734296513539,2.57063,3890.1,3889.0,0.13142504]
[1734296513749,0.5379,3890.0,3889.0,0.13142504]
[1734296514064,0.5379,3890.0,3888.7,2.4256051]
[1734296514065,0.5379,3890.0,3888.7,5.4256051]
[1734296514279,0.5379,3890.0,3888.9,3.0]
[1734296514617,0.5379,3890.0,3888.8,0.84613614]
[1734296514618,0.5379,3890.0,3888.8,6.41758614]
[1734296514818,0.5379,3890.0,3888.9,5.22433311]
[1734296515059,0.5379,3890.0,3888.9,3.0]
[1734296517925,0.5379,3890.0,3889.0,3.88972482]
[1734296518124,0.5379,3890.0,3889.1,1.04329341]
[1734296521885,0.5379,3890.0,3889.5,2.57101]
[1734296522924,0.5379,3890.0,3889.5,3.0]
[1734296523259,0.5379,3890.0,3889.1,4.69008795]
[1734296523438,0.5379,3890.0,3889.1,3.61453341]
[1734296524147,0.5379,3890.0,3889.2,0.88974187]
[1734296524453,0.5379,3890.0,3889.1,3.61453341]
[1734296525827,0.5379,3890.0,3889.1,1.04329341]
[1734296527451,0.5379,3890.0,3889.2,0.7690258]
[1734296529533,0.5379,3890.0,3889.2,1.5669258]
[1734296532369,0.5379,3890.0,3889.1,2.57128]
[1734296532572,0.5379,3890.0,3889.2,0.89005612]
[1734296533069,0.5379,3890.0,3889.2,3.46123612]
[1734296533372,0.5379,3890.0,3889.2,2.57118]
[1734296534643,0.5379,3890.0,3889.3,2.57115]
[1734296534844,2.57076,3889.9,3889.1,1.07555454]
[1734296535056,0.2496,3890.2,3888.9,3.0]
[1734296535057,0.5379,3889.6,3888.9,3.0]
[1734296535370,0.5379,3889.5,3888.6,1.07555454]
[1734296535584,0.5379,3889.5,3888.7,3.51378699]
[1734296535790,0.5379,3889.5,3888.7,0.51378699]
[1734296536157,0.5379,3889.5,3888.4,1.07555454]
[1734296536355,0.5379,3889.2,3888.5,0.89035238]
[1734296536684,0.5379,3889.2,3888.2,1.07555454]
[1734296536887,0.5379,3889.2,3888.3,2.55613921]
[1734296537071,0.5379,3889.2,3888.4,0.89041103]
[1734296537589,0.5379,3889.1,3888.4,0.89041103]
[1734296537746,0.5379,3889.1,3888.2,1.07555454]
[1734296537947,0.5379,3889.1,3888.2,3.30150032]
[1734296538255,0.5379,3889.1,3888.3,2.22594578]
[1734296538460,2.5713,3889.1,3888.2,2.55613921]
[1734296538657,0.5379,3889.0,3888.3,0.89038625]
[1734296539577,0.5379,3889.0,3888.1,0.51268474]
[1734296539778,0.5379,3889.0,3888.2,0.89033213]
[1734296540320,0.5379,3888.8,3888.2,0.89033213]
[1734296540454,0.5379,3888.8,3888.0,47.0]
[1734296540455,0.5379,3888.5,3888.0,47.0]
[1734296540663,0.5379,3888.3,3888.0,47.0]
[1734296540855,3.10985,3888.1,3888.0,47.0]
[1734296541089,3.77922619,3888.1,3888.0,47.0]
[1734296541497,3.10985,3888.1,3888.0,47.0]
[1734296541658,0.5379,3888.1,3888.0,47.0]
[1734296545825,1.2764073,3889.3,3888.0,47.0]
[1734296545826,0.5379,3888.8,3888.0,47.0]
[1734296553133,2.57158,3888.7,3888.0,47.0]
[1734296553340,0.5379,3888.3,3888.0,47.0]
[1734296553486,3.10972,3888.3,3888.0,47.0]
[1734296553855,0.5379,3888.6,3888.0,47.0]
[1734296554492,2.57155,3888.7,3888.0,47.0]
[1734296554493,0.5379,3888.1,3888.0,47.0]
[1734296554686,3.10985,3888.1,3888.0,47.0]
[1734296554887,3.420835,3888.1,3888.0,47.0]
[1734296555106,0.848885,3888.1,3888.0,47.0]
[1734296555566,0.5379,3888.1,3888.0,47.0]
[1734296558467,2.57136,3889.0,3888.0,47.0]
[1734296558468,0.5379,3888.7,3888.0,47.0]
[1734296559171,2.57162,3888.6,3888.0,47.0]
[1734296560055,0.5379,3888.4,3888.0,47.0]
[1734296560458,3.10966,3888.4,3888.0,47.0]
[1734296560674,2.882816,3888.3,3888.0,47.0]
[1734296561038,0.310966,3888.3,3888.0,47.0]
[1734296561235,0.5379,3888.4,3888.0,47.0]
[1734296561449,2.57184,3888.3,3888.0,47.0]
[1734296570519,0.5379,3888.4,3888.0,47.0]
[1734296570694,2.57188,3888.2,3888.0,47.0]
[1734296571514,0.5379,3888.4,3888.0,47.0]
[1734296572154,3.10967,3888.4,3888.0,47.0]
[1734296572552,0.5379,3888.4,3888.0,47.0]
[1734296572905,2.57182,3888.3,3888.0,47.0]
[1734296573206,2.5719,3888.2,3888.0,47.0]
[1734296575418,2.57195,3888.1,3888.0,47.0]
[1734296576308,0.5379,3888.4,3888.0,47.0]
[1734296576527,2.57182,3888.3,3888.0,47.0]
[1734296583048,1.53229244,3888.3,3888.0,47.0]
[1734296583350,5.26238333,3888.1,3888.0,47.0]
[1734296583512,5.96711437,3888.1,3888.0,47.0]
[1734296583708,6.98028245,3888.1,3888.0,47.0]
[1734296584250,7.60054998,3888.1,3888.0,47.0]
[1734296584575,14.12622881,3888.1,3888.0,47.0]
[1734296585049,14.13273469,3888.1,3888.0,47.0]
[1734296585249,13.53636487,3888.1,3888.0,47.0]
[1734296586255,16.20980736,3888.1,3888.0,47.0]
[1734296586434,11.99388803,3888.1,3888.0,47.0]
[1734296586833,10.98071995,3888.1,3888.0,47.0]
[1734296587150,2.92705506,3888.1,3888.0,47.0]
[1734296587333,2.32335542,3888.1,3888.0,47.0]
[1734296588271,1.2542542,3888.1,3888.0,47.0]
[1734296588423,4.89530542,3888.1,3888.0,47.0]
[1734296589364,1.2542542,3888.1,3888.0,47.0]
[1734296589539,2.0822693,3888.2,3888.0,47.0]
[1734296589737,1.01316808,3888.2,3888.0,47.0]
[1734296590087,1.06910122,3888.4,3888.0,47.0]
[1734296590298,2.57195,3888.1,3888.0,47.0]
[1734296590565,3.58511808,3888.1,3888.0,47.0]
[1734296591524,5.37722158,3888.1,3888.0,47.0]
[1734296592070,6.98089362,3888.1,3888.0,47.0]
[1734296595165,10.53089362,3888.1,3888.0,47.0]
[1734296595335,14.10590615,3888.1,3888.0,47.0]
[1734296596236,11.96776523,3888.1,3888.0,47.0]
[1734296596599,14.10574463,3888.1,3888.0,47.0]
[1734296596729,11.96776523,3888.1,3888.0,47.0]
[1734296596929,14.10574786,3888.1,3888.0,47.0]
[1734296597166,11.96776523,3888.1,3888.0,47.0]
[1734296597545,14.64050254,3888.1,3888.0,47.0]
[1734296598855,11.96776523,3888.1,3888.0,47.0]
[1734296599192,13.62733446,3888.1,3888.0,47.0]
[1734296599337,10.95459715,3888.1,3888.0,47.0]
[1734296599932,9.70037134,3888.1,3888.0,47.0]
[1734296600172,10.95453748,3888.1,3888.0,47.0]
[1734296600417,13.09251842,3888.1,3888.0,47.0]
[1734296600683,10.95453748,3888.1,3888.0,47.0]
[1734296601091,13.09252839,3888.1,3888.0,47.0]
[1734296601275,12.49653748,3888.1,3888.0,40.56995]
[1734296601474,15.16914002,3888.1,3888.0,40.56995]
[1734296601673,15.41914002,3888.1,3888.0,40.56995]
[1734296601873,12.79354802,3888.1,3888.0,35.42591]
[1734296602279,15.13326714,3888.1,3888.0,14.65263671]
[1734296602454,15.13326714,3888.1,3888.0,14.18043259]
[1734296602654,18.87491069,3888.1,3888.0,14.18043259]
[1734296602893,18.87491069,3888.1,3888.0,11.60841259]
[1734296603095,18.87491069,3888.1,3888.0,7.75038259]
[1734296603389,15.13017361,3888.1,3888.0,7.75038259]
[1734296603799,15.39802003,3888.1,3888.0,7.75038259]
[1734296603957,17.55295055,3888.1,3888.0,1.32033259]
[1734296604157,17.30295055,3888.1,3888.0,1.32033259]
[1734296604356,16.04878441,3888.1,3888.0,1.32033259]
[1734296604656,17.02653423,3888.1,3888.0,1.32033259]
[1734296604904,14.93681511,3888.1,3888.0,1.32033259]
[1734296606364,17.60506652,3888.1,3888.0,1.32033259]
[1734296606699,8.44988853,3888.1,3888.0,1.32033259]
[1734296607002,3.84361683,3888.1,3888.0,1.32033259]
[1734296607162,5.44471587,3888.1,3888.0,1.32033259]
[1734296607357,3.84361683,3888.1,3888.0,1.32033259]
[1734296608206,4.39361683,3888.1,3888.0,1.32033259]
[1734296609196,5.46100926,3888.1,3888.0,1.32033259]
[1734296609395,6.22101009,3888.1,3888.0,1.32033259]
[1734296609597,3.10215362,3888.1,3888.0,1.32033259]
[1734296609802,7.82903414,3888.1,3888.0,1.32033259]
[1734296609974,8.36271797,3888.1,3888.0,1.32033259]
[1734296610876,12.48656925,3888.1,3888.0,1.32033259]
[1734296611079,14.62132248,3888.1,3888.0,1.32033259]
[1734296611689,14.62132248,3888.1,3887.0,5.7621]
[1734296611690,3.66051,3887.1,3887.0,5.0]
[1734296611894,4.88812038,3887.1,3887.0,5.0]
[1734296612407,7.88812038,3887.1,3887.0,5.0]
[1734296612577,7.88812038,3887.1,3885.5,0.1649825]
[1734296612578,0.55,3886.1,3885.5,0.1649825]
[1734296612785,0.5379,3886.2,3885.5,0.1649825]
[1734296612786,3.0,3886.2,3885.5,0.1649825]
[1734296612984,3.12327,3886.1,3885.5,0.1649825]
[1734296613182,3.78852908,3886.2,3885.5,0.1649825]
[1734296613406,0.55,3886.1,3885.5,0.1649825]
[1734296613567,2.57342,3885.9,3885.5,0.1649825]
[1734296614309,0.56677615,3886.2,3885.5,0.1649825]
[1734296614606,7.68604663,3886.4,3885.5,0.1649825]
[1734296614607,0.50820422,3886.4,3885.5,0.1649825]
[1734296614806,1.60472241,3886.7,3885.5,0.1649825]
[1734296615103,2.57336,3886.0,3885.5,0.1649825]
[1734296615518,2.57354,3885.7,3885.5,0.1649825]
[1734296616697,2.57317,3886.3,3885.5,0.1649825]
[1734296616698,2.57338,3886.0,3885.5,0.1649825]
[1734296616907,2.57347,3885.8,3885.5,0.1649825]
[1734296617418,2.69283052,3886.2,3885.5,0.1649825]
[1734296617621,6.6615,3885.6,3885.5,0.1649825]
[1734296617822,7.88581194,3885.6,3885.5,2.5e-06]
[1734296617981,0.5379,3884.5,3883.1,2.57522]
[1734296618325,3.11224,3884.5,3883.0,0.805]
[1734296618524,2.57445,3884.4,3883.0,0.805]
[1734296618685,2.57461,3884.1,3883.0,0.805]
[1734296618891,2.57472,3884.0,3883.1,0.44585813]
[1734296619162,2.57445,3884.4,3883.1,0.44585813]
[1734296619396,6.21920661,3885.1,3882.8,3.65358127]
[1734296619397,2.57504,3883.5,3882.8,3.65358127]
[1734296619600,0.55,3883.8,3882.8,3.65358127]
[1734296619812,5.73984106,3884.3,3882.8,3.65358127]
[1734296619813,0.58491054,3884.3,3882.9,0.805]
[1734296619982,2.57459,3884.1,3882.9,0.805]
[1734296620183,2.57536,3883.0,3882.8,3.65358127]
[1734296620385,1.065055,3882.9,3882.8,3.65358127]
[1734296620807,2.57536,3883.0,3882.8,3.65358127]
[1734296621218,3.0,3883.5,3882.8,3.65358127]
[1734296621832,3.11243,3884.2,3882.8,3.65358127]
[1734296621998,2.57495,3883.6,3882.8,3.65358127]
[1734296622595,0.5379,3884.2,3882.9,0.805]
[1734296622596,0.50729336,3884.2,3882.9,0.805]
[1734296622796,3.35581747,3884.2,3883.0,0.44585813]
[1734296622998,0.5379,3883.6,3882.8,3.65358127]
[1734296623199,4.0879,3882.9,3882.8,3.65358127]
[1734296623418,3.0,3882.9,3882.8,3.65358127]
[1734296624431,2.57534,3883.0,3882.8,3.65358127]
[1734296625743,4.73027052,3883.0,3882.8,2.36585127]
[1734296625917,2.57619,3881.7,3881.6,0.1649825]
[1734296626243,3.12619,3881.7,3881.6,2.5e-06]
[1734296626459,3.12619,3881.7,3879.7,0.2]
[1734296626460,0.5379,3881.5,3879.7,0.2]
[1734296626601,2.57722,3880.2,3879.7,0.2]
[1734296626798,3.0,3880.6,3879.8,0.805]
[1734296627000,3.0,3880.6,3879.7,0.2]
[1734296627001,2.5774,3879.9,3879.7,0.2]
[1734296627202,2.57741,3879.9,3879.7,0.2]
[1734296627439,0.50477134,3880.9,3879.7,0.2]
[1734296627656,3.1386578,3881.8,3879.8,0.8296]
[1734296627657,2.57714,3880.3,3879.8,0.8296]
[1734296627799,3.66504581,3881.5,3879.8,0.8296]
[1734296628158,2.57702,3880.5,3879.8,0.8296]
[1734296628306,2.57666,3881.0,3879.7,0.2]
[1734296628307,0.55,3880.7,3879.7,0.2]
[1734296628495,3.69429113,3881.3,3879.8,0.7675]
[1734296628496,3.0,3880.6,3879.8,0.7675]
[1734296628701,2.57719,3880.2,3879.8,0.7675]
[1734296629036,2.57723,3880.2,3879.8,0.7675]